bitfinex/quotes_BTCUSD_20251016
["timestamp","ask_amount","ask_price","bid_price","bid_amount"]
[1760638803613,1.08272602,108070.0,108060.0,0.18508236]
[1760638803822,0.89766079,108070.0,108060.0,0.18508236]
[1760638804026,0.12050088,108070.0,108060.0,0.18508236]
[1760638804228,0.12050088,108070.0,108060.0,0.22625542]
[1760638804443,0.30556611,108070.0,108060.0,0.04117306]
[1760638804646,0.30556611,108070.0,108060.0,0.04217306]
[1760638804647,0.15813805,108070.0,108060.0,0.04217306]
[1760638804846,0.12050088,108070.0,108060.0,0.22725542]
[1760638805051,0.12050088,108070.0,108060.0,0.35312782]
[1760638805318,0.12050088,108070.0,108060.0,0.44776782]
[1760638805974,0.12050088,108070.0,108060.0,0.78776782]
[1760638805975,0.00050088,108070.0,108060.0,0.78776782]
[1760638807551,0.00050088,108070.0,108060.0,0.78621482]
[1760638808498,0.97272602,108070.0,108060.0,0.09069012]
[1760638808727,0.97272602,108070.0,108060.0,0.001]
[1760638809159,0.97272602,108070.0,108060.0,0.18608236]
[1760638809581,0.97272602,108070.0,108060.0,0.001]
[1760638809791,0.97272602,108070.0,108060.0,0.18508236]
[1760638810007,0.19556611,108070.0,108060.0,0.18508236]
[1760638810226,1.0107877,108070.0,108060.0,0.001]
[1760638810461,0.97272602,108070.0,108060.0,0.18508236]
[1760638810673,0.97272602,108070.0,108060.0,0.001]
[1760638810888,0.19556611,108070.0,108060.0,0.18608236]
[1760638811091,0.78766079,108070.0,108060.0,0.18608236]
[1760638811310,0.78766079,108070.0,108060.0,0.22320012]
[1760638811525,0.01050088,108070.0,108060.0,0.18608236]
[1760638811732,0.01050088,108070.0,108060.0,0.31195476]
[1760638811939,0.00050088,108070.0,108060.0,0.31195476]
[1760638812149,0.00050088,108070.0,108060.0,0.40663476]
[1760638812395,0.00050088,108070.0,108060.0,0.46580776]
[1760638812616,1e-08,108070.0,108060.0,0.80580776]
[1760638812832,1e-08,108070.0,108060.0,1.6107892]
[1760638813539,1e-08,108070.0,108060.0,0.83362929]
[1760638813975,1e-08,108070.0,108060.0,0.83262929]
[1760638814186,1e-08,108070.0,108060.0,0.83462929]
[1760638814397,1e-08,108070.0,108060.0,1.6118392]
[1760638815054,1e-08,108070.0,108060.0,1.5171592]
[1760638815264,1e-08,108070.0,108060.0,1.6118392]
[1760638815489,1e-08,108070.0,108060.0,0.90422405]
[1760638815713,1e-08,108070.0,108060.0,1.68138396]
[1760638815931,1e-08,108070.0,108060.0,0.90422405]
[1760638816168,1e-08,108070.0,108060.0,1.68138396]
[1760638816841,1e-08,108070.0,108060.0,1.68038396]
[1760638817250,0.9805534,108110.0,108100.0,0.18500408]
[1760638817476,0.9805534,108110.0,108090.0,0.27969409]
[1760638817477,1.10070363,108110.0,108090.0,0.27969409]
[1760638817688,1.0823069,108110.0,108090.0,0.27472111]
[1760638817898,1.08231053,108110.0,108100.0,0.18501387]
[1760638818120,0.12015023,108110.0,108100.0,0.18501387]
[1760638818340,1.0823069,108110.0,108100.0,0.18501387]
[1760638818795,0.89731014,108110.0,108100.0,0.23098737]
[1760638819018,0.12015023,108110.0,108100.0,0.23098737]
[1760638819234,0.12015023,108110.0,108100.0,0.35685977]
[1760638819465,0.12015023,108110.0,108100.0,0.45149977]
[1760638819886,0.12015023,108110.0,108100.0,0.45154977]
[1760638820104,0.12015023,108110.0,108100.0,0.35690977]
[1760638820972,0.89731014,108110.0,108100.0,0.31093627]
[1760638821185,1.0823069,108110.0,108100.0,5e-05]
[1760638821409,1.0823069,108110.0,108100.0,0.18506387]
[1760638821632,1.0823069,108110.0,108100.0,5e-05]
[1760638821853,6.44209381,108110.0,108100.0,5e-05]
[1760638822059,6.53177589,108110.0,108100.0,5e-05]
[1760638822271,6.55672918,108110.0,108100.0,5e-05]
[1760638823333,6.55672918,108110.0,108100.0,0.0001]
[1760638823748,6.4670471,108110.0,108100.0,0.0001]
[1760638824626,6.4752589,108110.0,108100.0,0.0001]
[1760638825052,6.46686634,108110.0,108100.0,0.0001]
[1760638825484,6.33734595,108110.0,108100.0,0.0001]
[1760638825738,1.31257342,108110.0,108100.0,0.18511387]
[1760638825953,1.36194358,108110.0,108100.0,0.18511387]
[1760638826169,0.58478367,108110.0,108100.0,0.0001]
[1760638826380,1.3619981,108110.0,108100.0,0.0001]
[1760638827225,1.38679989,108110.0,108100.0,0.0001]
[1760638827632,6.38679989,108110.0,108100.0,0.0001]
[1760638827860,6.39516319,108110.0,108100.0,0.0001]
[1760638828073,6.59899688,108110.0,108100.0,0.0001]
[1760638828312,6.51841914,108110.0,108100.0,0.0001]
[1760638828934,6.42873706,108110.0,108100.0,0.0001]
[1760638829347,6.37899036,108110.0,108100.0,0.0001]
[1760638829563,5.60183045,108110.0,108100.0,0.0001]
[1760638829776,6.37899036,108110.0,108100.0,0.0001]
[1760638830671,6.42875398,108110.0,108100.0,0.0001]
[1760638831080,6.51843606,108110.0,108100.0,0.0001]
[1760638831257,6.46867244,108110.0,108100.0,0.0001]
[1760638831868,6.46867244,108110.0,108060.0,0.01844673]
[1760638831869,0.52506523,108070.0,108060.0,0.01844673]
[1760638832118,6.50017662,108070.0,108060.0,0.01844673]
[1760638832283,6.47527231,108070.0,108060.0,5e-05]
[1760638832494,1.47527231,108070.0,108060.0,5e-05]
[1760638832696,6.47527231,108070.0,108060.0,5e-05]
[1760638833050,6.47527231,108070.0,108060.0,0.00020023]
[1760638834354,6.5319195,108070.0,108060.0,0.00025023]
[1760638834565,6.47527231,108070.0,108060.0,0.00025023]
[1760638834771,5.6981124,108070.0,108060.0,0.00025023]
[1760638835218,6.47527231,108070.0,108060.0,0.00025023]
[1760638835458,6.50825805,108070.0,108060.0,0.00025023]
[1760638835684,6.44206657,108070.0,108060.0,0.00025023]
[1760638835956,6.49183018,108070.0,108060.0,0.00025023]
[1760638836380,6.49283018,108070.0,108060.0,0.00025023]
[1760638836793,6.5259929,108070.0,108060.0,0.00025023]
[1760638836999,6.52599274,108070.0,108060.0,0.00025023]
[1760638837210,6.61567482,108070.0,108060.0,0.00025023]
[1760638837422,6.52599274,108070.0,108060.0,0.00025023]
[1760638837647,6.52499274,108070.0,108060.0,0.00025023]
[1760638837861,5.17300399,108070.0,108060.0,0.18533259]
[1760638838111,5.94286662,108070.0,108060.0,0.18533259]
[1760638838329,0.13984143,108070.0,108060.0,0.18533259]
[1760638838547,0.12,108070.0,108060.0,0.22237494]
[1760638838766,1.08222514,108070.0,108060.0,0.22237494]
[1760638838975,0.91700134,108070.0,108060.0,0.22237494]
[1760638839410,0.18505224,108080.0,108070.0,0.18506523]
[1760638839631,0.18505224,108080.0,108060.0,0.18533259]
[1760638839632,0.18506523,108070.0,108060.0,0.18533259]
[1760638839848,0.89715991,108070.0,108060.0,0.18533259]
[1760638840062,0.91704969,108070.0,108060.0,0.18533259]
[1760638840265,0.91704969,108070.0,108060.0,0.00025023]
[1760638840502,1.10211492,108070.0,108060.0,0.00025023]
[1760638841053,0.32495501,108070.0,108060.0,0.18533259]
[1760638841303,1.08222514,108070.0,108060.0,0.18533259]
[1760638841523,1.10211492,108070.0,108060.0,0.18533259]
[1760638841740,0.91704969,108070.0,108060.0,0.18533259]
[1760638842367,0.13988978,108070.0,108060.0,0.22237494]
[1760638842580,0.12,108070.0,108060.0,0.22237494]
[1760638842791,0.12,108070.0,108060.0,0.34824734]
[1760638843220,0.01988681,108100.0,108090.0,0.18503099]
[1760638843436,0.81544107,108110.0,108100.0,0.18501387]
[1760638843690,0.13988443,108110.0,108100.0,0.22201836]
[1760638843909,0.12,108110.0,108100.0,0.31170848]
[1760638844541,0.89715991,108110.0,108100.0,0.31170848]
[1760638844756,1.08215667,108110.0,108100.0,0.27470399]
[1760638844997,0.89715991,108110.0,108100.0,0.27470399]
[1760638845207,0.12,108110.0,108100.0,0.27470399]
[1760638845388,0.12,108110.0,108100.0,0.27570399]
[1760638846271,0.89715991,108110.0,108100.0,0.27570399]
[1760638846487,0.12,108110.0,108100.0,0.35795977]
[1760638847320,0.12,108110.0,108100.0,0.31188627]
[1760638850298,1.08215667,108110.0,108100.0,0.27570399]
[1760638850500,0.89715991,108110.0,108100.0,0.18601387]
[1760638851139,0.12,108110.0,108100.0,0.18601387]
[1760638851418,0.12,108110.0,108100.0,0.40652627]
[1760638851626,0.12,108110.0,108100.0,0.49620835]
[1760638851834,0.12,108110.0,108100.0,0.49625835]
[1760638852685,0.89715991,108110.0,108100.0,0.31193627]
[1760638852897,1.08215667,108110.0,108100.0,0.27575399]
[1760638853110,0.89715991,108110.0,108100.0,0.18606387]
[1760638853571,0.12,108110.0,108100.0,0.18606387]
[1760638854000,0.12,108110.0,108100.0,0.31193627]
[1760638854245,0.12,108110.0,108100.0,0.361633]
[1760638855802,0.12,108110.0,108100.0,0.456313]
[1760638856238,0.12,108110.0,108100.0,0.42013072]
[1760638856476,0.12,108110.0,108100.0,0.456313]
[1760638858038,0.0002,108130.0,108100.0,0.456313]
[1760638858254,0.1302,108130.0,108120.0,0.18497965]
[1760638859348,0.90735991,108130.0,108120.0,0.18497965]
[1760638860020,1.09232245,108130.0,108110.0,0.27467147]
[1760638860254,0.31516254,108130.0,108120.0,0.18497965]
[1760638860473,1.09232245,108130.0,108110.0,0.27467147]
[1760638860698,0.96213956,108120.0,108110.0,0.18499676]
[1760638860944,0.0002,108130.0,108120.0,0.18497965]
[1760638861164,0.1402,108130.0,108120.0,0.18497965]
[1760638861390,0.1402,108130.0,108120.0,0.2309463]
[1760638861603,0.641489,108130.0,108120.0,0.18497965]
[1760638861831,0.82645154,108130.0,108120.0,0.18497965]
[1760638862286,0.82645154,108130.0,108110.0,0.27468688]
[1760638862538,0.68626865,108120.0,108110.0,0.1258724]
[1760638862782,0.80626865,108120.0,108110.0,0.18499676]
[1760638863004,0.18499676,108110.0,108100.0,0.18505939]
[1760638863229,0.80628576,108110.0,108100.0,0.18505939]
[1760638863671,0.621289,108110.0,108100.0,0.18505939]
[1760638864129,0.80628576,108110.0,108100.0,5e-05]
[1760638864345,0.80628576,108110.0,108100.0,0.00105]
[1760638864562,0.80628576,108110.0,108100.0,0.18606387]
[1760638864999,0.80628576,108110.0,108100.0,0.00105]
[1760638865221,6.23596784,108110.0,108100.0,0.00105]
[1760638865434,6.16615642,108110.0,108100.0,0.00105]
[1760638865867,6.1910217,108110.0,108100.0,0.00105]
[1760638866305,6.22418426,108110.0,108100.0,0.00105]
[1760638866524,6.22418426,108110.0,108100.0,5e-05]
[1760638866966,6.28070378,108110.0,108100.0,5e-05]
[1760638867181,6.22418426,108110.0,108100.0,5e-05]
[1760638867397,6.19931898,108110.0,108100.0,5e-05]
[1760638867603,6.24908259,108110.0,108100.0,5e-05]
[1760638868461,5.74779359,108110.0,108100.0,5e-05]
[1760638868695,6.33876467,108110.0,108100.0,5e-05]
[1760638868908,6.80689111,108110.0,108100.0,5e-05]
[1760638869134,5.52504811,108080.0,108070.0,0.01839673]
[1760638869345,6.69238751,108080.0,108070.0,0.01854696]
[1760638869772,6.69238751,108080.0,108070.0,0.00015023]
[1760638870249,6.7490347,108080.0,108070.0,0.00015023]
[1760638870498,5.68980951,108080.0,108070.0,0.00015023]
[1760638870708,6.69238751,108080.0,108070.0,0.00015023]
[1760638870921,6.72557516,108080.0,108070.0,0.00015023]
[1760638871209,6.69238751,108080.0,108070.0,0.00015023]
[1760638871411,6.72411502,108080.0,108070.0,0.00015023]
[1760638871622,6.84698475,108080.0,108070.0,0.00015023]
[1760638871830,6.82209401,108080.0,108070.0,0.00015023]
[1760638872054,6.87187549,108080.0,108070.0,0.00015023]
[1760638873296,6.82209401,108080.0,108070.0,0.00015023]
[1760638874354,6.87187549,108080.0,108070.0,0.00015023]
[1760638874791,6.75724879,108080.0,108070.0,0.00015023]
[1760638874994,6.73241193,108080.0,108070.0,0.00015023]
[1760638877281,6.75722192,108080.0,108070.0,0.00015023]
[1760638877702,1.22274527,108080.0,108070.0,0.00015023]
[1760638877907,6.22274527,108080.0,108070.0,0.00015023]
[1760638878116,6.81371635,108080.0,108070.0,0.00015023]
[1760638879150,6.72403427,108080.0,108070.0,0.00015023]
[1760638879557,1.22274527,108080.0,108070.0,0.00015023]
[1760638879758,1.72403427,108080.0,108070.0,0.00015023]
[1760638879919,1.69922428,108080.0,108070.0,0.00015023]
[1760638880118,6.72403427,108080.0,108070.0,0.00015023]
[1760638880330,6.69922428,108080.0,108070.0,0.00015023]
[1760638881143,6.69922428,108080.0,108070.0,0.00020023]
[1760638881517,1.19793528,108080.0,108070.0,0.00020023]
[1760638881786,1.19793528,108080.0,108070.0,0.18526546]
[1760638881970,0.17159817,108080.0,108070.0,0.18526546]
[1760638882330,0.12,108080.0,108070.0,0.18526546]
[1760638882545,0.12,108080.0,108070.0,0.31113786]
[1760638882738,0.17,108110.0,108100.0,0.18501387]
[1760638882941,0.18501394,108100.0,108080.0,0.19427078]
[1760638883187,0.13,108100.0,108090.0,0.18503099]
[1760638883389,0.13,108100.0,108090.0,0.20353408]
[1760638883575,0.66346807,108100.0,108090.0,0.18503099]
[1760638883818,0.31501387,108100.0,108090.0,0.18503099]
[1760638884027,0.81630287,108100.0,108090.0,0.18503099]
[1760638884418,0.81630287,108100.0,108080.0,0.2849609]
[1760638884661,0.81630287,108100.0,108090.0,0.18503099]
[1760638884859,0.631289,108100.0,108090.0,0.18503099]
[1760638885043,0.13,108100.0,108090.0,0.18503099]
[1760638885710,0.13,108100.0,108090.0,0.18603099]
[1760638885918,0.81630287,108100.0,108090.0,0.18603099]
[1760638886335,0.13,108100.0,108090.0,0.18603099]
[1760638886537,0.13,108100.0,108090.0,0.36491347]
[1760638887607,0.13,108100.0,108090.0,0.86620247]
[1760638888059,0.13,108100.0,108090.0,0.96088247]
[1760638888474,0.03255578,108130.0,108120.0,0.18497965]
[1760638888700,0.03255578,108130.0,108120.0,0.22197729]
[1760638888701,0.1202,108130.0,108120.0,0.22197729]
[1760638888926,0.1202,108130.0,108120.0,0.34784969]
[1760638889140,0.1202,108130.0,108120.0,0.31085205]
[1760638889420,0.33699876,108130.0,108120.0,0.18497965]
[1760638889626,0.83828776,108130.0,108110.0,0.18499628]
[1760638889840,0.83828776,108130.0,108110.0,0.18499676]
[1760638890017,0.64516402,108130.0,108120.0,0.18597965]
[1760638890433,0.1202,108130.0,108120.0,0.22307729]
[1760638890852,0.1202,108130.0,108120.0,0.34894969]
[1760638891069,0.1202,108130.0,108120.0,0.94491869]
[1760638891497,0.1202,108130.0,108120.0,0.94391869]
[1760638891719,0.1202,108130.0,108120.0,1.28391869]
[1760638891955,0.0002,108130.0,108120.0,1.28391869]
[1760638892380,0.0002,108130.0,108120.0,1.28491869]
[1760638892589,1e-08,108130.0,108120.0,1.28491869]
[1760638892794,1e-08,108130.0,108120.0,1.28391869]
[1760638892946,1e-08,108130.0,108120.0,1.28491869]
[1760638893164,1e-08,108130.0,108120.0,1.28391869]
[1760638893340,1e-08,108130.0,108120.0,1.18923869]
[1760638893546,1e-08,108130.0,108120.0,1.28595869]
[1760638895033,1e-08,108130.0,108120.0,0.78466969]
[1760638895239,1e-08,108130.0,108120.0,1.28595869]
[1760638896128,1e-08,108130.0,108120.0,1.25817424]
[1760638896336,0.35839673,108170.0,108160.0,0.18491124]
[1760638896563,0.49854749,108170.0,108160.0,0.18491124]
[1760638896780,0.48015076,108170.0,108160.0,0.18491124]
[1760638897021,0.6650449,108170.0,108160.0,0.18491124]
[1760638897458,0.48015076,108170.0,108160.0,0.18491124]
[1760638897667,0.6650449,108170.0,108160.0,0.18491124]
[1760638898068,0.48015076,108170.0,108160.0,0.18491124]
[1760638898285,0.48015076,108170.0,108160.0,0.35723817]
[1760638898499,0.14015076,108170.0,108160.0,0.35723817]
[1760638898696,0.14015076,108170.0,108160.0,0.13614465]
[1760638898907,0.18491124,108160.0,108140.0,0.19416707]
[1760638899116,0.8354458,108160.0,108140.0,0.36930848]
[1760638899341,0.14,108160.0,108150.0,0.18492834]
[1760638900399,0.14,108160.0,108150.0,0.81208974]
[1760638900632,0.14,108160.0,108150.0,0.31080074]
[1760638900844,0.14,108160.0,108150.0,0.36984265]
[1760638902430,0.14,108160.0,108150.0,0.31080074]
[1760638904155,0.82620024,108160.0,108150.0,0.03618228]
[1760638904367,0.82620349,108160.0,108150.0,0.18492834]
[1760638904571,0.82620349,108160.0,108140.0,0.18494293]
[1760638904810,0.14,108160.0,108150.0,0.18492834]
[1760638905021,0.14,108160.0,108150.0,0.22191547]
[1760638905443,0.34,108170.0,108160.0,0.18491124]
[1760638905647,0.55489414,108170.0,108160.0,0.18491124]
[1760638906144,1.05370606,108170.0,108160.0,0.18491124]
[1760638908093,0.36752292,108170.0,108160.0,0.18491124]
[1760638908305,0.03,108170.0,108160.0,0.22281984]
[1760638908561,0.03,108170.0,108160.0,0.34869224]
[1760638908767,0.03,108170.0,108160.0,0.44337224]
[1760638909179,0.03,108170.0,108160.0,0.22281984]
[1760638909397,0.531289,108170.0,108160.0,0.18491124]
[1760638909606,0.18491124,108160.0,108150.0,0.18492727]
[1760638909824,0.70599123,108170.0,108160.0,0.18491124]
[1760638910041,0.18491124,108160.0,108150.0,0.31079967]
[1760638910265,0.70599123,108170.0,108160.0,0.18491124]
[1760638910473,0.82599123,108170.0,108150.0,0.27461846]
[1760638910682,0.82599123,108170.0,108160.0,0.18491124]
[1760638911089,0.18491124,108160.0,108150.0,0.27461846]
[1760638911311,0.621289,108160.0,108150.0,0.18492834]
[1760638911526,0.18492834,108150.0,108140.0,0.18494293]
[1760638911756,0.70600833,108160.0,108150.0,0.18492834]
[1760638911987,0.64109709,108160.0,108150.0,0.18492834]
[1760638912200,0.82600833,108160.0,108150.0,0.18492834]
[1760638912470,0.32471933,108160.0,108150.0,0.18492834]
[1760638912683,0.30491124,108160.0,108150.0,0.18492834]
[1760638913141,0.12,108160.0,108150.0,0.18492834]
[1760638913351,0.12,108160.0,108150.0,0.20052146]
[1760638914657,0.12,108160.0,108150.0,0.29021158]
[1760638915090,0.12,108160.0,108150.0,0.42103386]
[1760638916310,0.13980809,108160.0,108150.0,0.42103386]
[1760638918026,0.16461808,108160.0,108150.0,0.42103386]
[1760638918427,0.66590708,108160.0,108150.0,0.42103386]
[1760638918596,0.66590708,108160.0,108150.0,0.32639386]
[1760638918790,0.69909473,108160.0,108150.0,0.27461846]
[1760638919232,0.16461808,108160.0,108150.0,0.27461846]
[1760638919437,0.19780573,108160.0,108150.0,0.27461846]
[1760638919808,0.19780573,108160.0,108150.0,0.31080074]
[1760638919809,0.16461808,108160.0,108150.0,0.31080074]
[1760638920572,0.1979545,108160.0,108150.0,0.31080074]
[1760638920796,0.1979545,108160.0,108150.0,0.36983911]
[1760638920992,0.16476685,108160.0,108150.0,0.36983911]
[1760638921608,0.13980809,108160.0,108150.0,0.36983911]
[1760638922028,0.01980809,108160.0,108150.0,0.36983911]
[1760638923095,0.52109709,108160.0,108150.0,0.31080074]
[1760638923315,0.66605585,108160.0,108150.0,0.31080074]
[1760638923518,0.04476685,108160.0,108150.0,0.31080074]
[1760638924577,0.17476685,108160.0,108150.0,0.31080074]
[1760638925234,0.04476685,108160.0,108150.0,0.31080074]
[1760638925446,0.18476685,108160.0,108150.0,0.36983911]
[1760638925677,1.20274125,108160.0,108150.0,0.03618228]
[1760638925901,1.45977212,108160.0,108140.0,0.18493611]
[1760638926110,0.75091081,108160.0,108150.0,0.18492834]
[1760638926321,0.49980809,108160.0,108150.0,0.18492834]
[1760638926535,0.54972292,108160.0,108150.0,0.18492834]
[1760638926750,1.50968695,108160.0,108150.0,0.18492834]
[1760638926967,1.32477571,108160.0,108150.0,0.18492834]
[1760638927893,1.50968695,108160.0,108150.0,0.18492834]
[1760638928114,1.45977212,108160.0,108150.0,0.18492834]
[1760638928537,1.46901768,108160.0,108150.0,0.18492834]
[1760638928970,1.27486088,108160.0,108150.0,0.18492834]
[1760638929178,1.45977212,108160.0,108150.0,0.18492834]
[1760638929616,0.18492834,108150.0,108140.0,0.18494544]
[1760638929833,1.15969814,108150.0,108130.0,0.18496254]
[1760638930044,0.85824024,108140.0,108130.0,0.18496254]
[1760638930272,0.98804833,108140.0,108110.0,0.21264332]
[1760638930492,0.83327584,108130.0,108120.0,0.18497533]
[1760638930702,0.83327584,108130.0,108110.0,0.28393671]
[1760638930703,0.98308393,108130.0,108110.0,0.28393671]
[1760638930912,1.19301087,108130.0,108120.0,0.18497965]
[1760638931141,0.18497965,108120.0,108110.0,0.18499545]
[1760638931357,0.96303882,108120.0,108110.0,0.18499676]
[1760638931573,0.18798603,108120.0,108110.0,0.18499676]
[1760638931783,0.15474149,108120.0,108110.0,0.22214092]
[1760638931994,0.18798603,108120.0,108110.0,0.22214092]
[1760638932400,0.15474149,108120.0,108110.0,0.22214092]
[1760638933061,0.01980809,108120.0,108110.0,0.31183104]
[1760638933506,0.17474149,108120.0,108110.0,0.31183104]
[1760638935085,0.14991927,108120.0,108110.0,0.31183104]
[1760638936596,0.13,108120.0,108110.0,0.31183104]
[1760638937031,0.14991927,108120.0,108110.0,0.31183104]
[1760638937267,0.33489892,108120.0,108110.0,0.18514752]
[1760638937455,1.09003244,108120.0,108110.0,0.18514752]
[1760638937661,1.10995171,108120.0,108110.0,0.18514752]
[1760638937877,1.1348508,108120.0,108110.0,0.00015076]
[1760638938285,1.10995171,108120.0,108110.0,0.00015076]
[1760638938487,1.1348508,108120.0,108110.0,0.18514752]
[1760638938918,1.1348508,108120.0,108110.0,0.00015076]
[1760638939124,1.1348508,108120.0,108110.0,0.18514752]
[1760638939300,1.10995171,108120.0,108110.0,0.18514752]
[1760638939513,1.10995171,108120.0,108110.0,0.00015076]
[1760638939713,0.92497206,108120.0,108110.0,0.18514752]
[1760638939919,1.44995171,108120.0,108110.0,0.00015076]
[1760638940333,1.44995171,108120.0,108110.0,0.18514752]
[1760638940948,1.26497206,108120.0,108110.0,0.18514752]
[1760638941151,1.44995171,108120.0,108110.0,0.18514752]
[1760638941591,0.47,108120.0,108110.0,0.18514752]
[1760638941715,0.47,108120.0,108110.0,0.22215599]
[1760638942224,0.13,108120.0,108110.0,0.25833827]
[1760638942604,0.25814363,108150.0,108110.0,0.25833827]
[1760638942605,0.79344952,108170.0,108160.0,0.18491124]
[1760638942864,0.79344952,108170.0,108160.0,0.20340236]
[1760638942865,0.15826838,108170.0,108160.0,0.20340236]
[1760638943064,0.14734356,108170.0,108160.0,0.20340236]
[1760638943271,0.48734356,108170.0,108160.0,0.20340236]
[1760638943477,1.10729049,108170.0,108160.0,0.18491124]
[1760638943661,0.92239635,108170.0,108160.0,0.18491124]
[1760638943871,1.10729049,108170.0,108160.0,0.18491124]
[1760638944218,1.44729049,108170.0,108160.0,0.18491124]
[1760638944611,1.26239635,108170.0,108160.0,0.18491124]
[1760638944885,1.44729049,108170.0,108160.0,0.22189368]
[1760638945035,1.44729049,108170.0,108160.0,0.18491124]
[1760638945671,1.26239635,108170.0,108160.0,0.18491124]
[1760638945877,0.48734356,108170.0,108160.0,0.18491124]
[1760638946105,1.26239635,108170.0,108160.0,0.18491124]
[1760638946474,1.44729049,108170.0,108160.0,0.2083262]
[1760638946680,1.26239635,108170.0,108160.0,0.2083262]
[1760638946881,0.48734356,108170.0,108160.0,0.18491124]
[1760638947077,0.14734356,108170.0,108160.0,0.18491124]
[1760638947278,0.12,108170.0,108160.0,0.27460136]
[1760638947549,0.12,108170.0,108160.0,0.40534364]
[1760638947951,0.11330587,108170.0,108160.0,0.40534364]
[1760638948195,0.11330587,108170.0,108160.0,0.46436932]
[1760638950320,0.01839673,108210.0,108200.0,0.18484288]
[1760638950534,0.14889897,108210.0,108200.0,0.31150328]
[1760638950751,0.13050224,108210.0,108200.0,0.34768556]
[1760638951595,0.13050224,108210.0,108200.0,0.44224556]
[1760638952470,0.0002,108220.0,108210.0,0.22100808]
[1760638952683,0.05035061,108220.0,108210.0,0.38959055]
[1760638953361,0.00035061,108220.0,108210.0,0.38959055]
[1760638953808,0.00035061,108220.0,108210.0,1.16464334]
[1760638954260,0.0002,108230.0,108220.0,0.560991]
[1760638954468,0.0002,108230.0,108220.0,1.52025391]
[1760638954660,0.0002,108230.0,108220.0,1.55726238]
[1760638954865,0.0002,108230.0,108220.0,0.78220959]
[1760638955539,0.0002,108230.0,108220.0,1.55726238]
[1760638955954,0.0002,108230.0,108220.0,1.55826238]
[1760638956164,0.0002,108230.0,108220.0,0.78320959]
[1760638956370,0.0002,108230.0,108220.0,1.55826238]
[1760638956791,0.96901328,108270.0,108260.0,0.18474043]
[1760638957008,1.11721018,108270.0,108260.0,0.02209227]
[1760638957217,0.34215739,108270.0,108250.0,0.22092731]
[1760638957439,0.92324969,108270.0,108260.0,0.18474043]
[1760638957880,0.12015056,108270.0,108260.0,0.18474043]
[1760638958731,0.30487393,108270.0,108260.0,0.18474043]
[1760638958945,1.07992672,108270.0,108260.0,0.18474043]
[1760638959154,1.07992672,108270.0,108250.0,0.40517743]
[1760638959392,1.07992672,108270.0,108260.0,0.18474043]
[1760638959806,1.07992672,108270.0,108250.0,0.40029951]
[1760638960023,0.95979322,108260.0,108250.0,0.1847575]
[1760638960237,1.08979322,108260.0,108250.0,0.1847575]
[1760638960870,0.1847575,108250.0,108240.0,0.22095685]
[1760638961079,0.13,108250.0,108240.0,0.18477034]
[1760638961293,0.13,108250.0,108240.0,0.2321025]
[1760638961502,0.13,108250.0,108240.0,0.18477034]
[1760638961688,0.13,108250.0,108240.0,0.27446046]
[1760638962367,0.13,108250.0,108240.0,0.27451046]
[1760638965943,0.00015056,108270.0,108260.0,0.18474043]
[1760638966154,0.14015056,108270.0,108260.0,0.18474043]
[1760638966584,0.14015056,108270.0,108260.0,0.23114069]
[1760638966810,0.14015056,108270.0,108260.0,0.35701309]
[1760638967032,0.00015056,108270.0,108260.0,0.35701309]
[1760638968120,0.19487393,108270.0,108260.0,0.1258724]
[1760638968353,0.18474176,108260.0,108240.0,5e-05]
[1760638968557,0.77505279,108250.0,108240.0,0.18482376]
[1760638968766,0.18474043,108260.0,108240.0,0.18482376]
[1760638968979,0.13,108260.0,108250.0,0.1847575]
[1760638969192,1.08979322,108260.0,108250.0,0.23253238]
[1760638969415,0.13,108260.0,108250.0,0.1847575]
[1760638969814,0.13,108260.0,108250.0,0.27444762]
[1760638970699,1.08979322,108260.0,108240.0,0.18482376]
[1760638970910,0.95981029,108250.0,108240.0,5e-05]
[1760638971114,1.06981029,108250.0,108240.0,0.18482457]
[1760638971703,0.11,108250.0,108240.0,0.18482457]
[1760638972167,0.88505279,108250.0,108240.0,0.18482457]
[1760638972373,0.11,108250.0,108240.0,0.18510188]
[1760638973247,0.11,108250.0,108240.0,0.40557428]
[1760638974222,0.01992482,108270.0,108260.0,0.18474043]
[1760638974400,0.14015056,108270.0,108260.0,0.18474043]
[1760638975143,0.32487393,108270.0,108260.0,0.18474043]
[1760638975565,1.09992672,108270.0,108260.0,0.18501774]
[1760638975772,1.11970098,108270.0,108260.0,0.18501774]
[1760638976168,1.10746277,108270.0,108260.0,0.18501774]
[1760638976847,1.10746277,108270.0,108260.0,0.00027731]
[1760638977288,1.22204394,108270.0,108260.0,0.00027731]
[1760638977498,6.58705732,108270.0,108260.0,0.00027731]
[1760638978354,6.53714485,108270.0,108260.0,0.00027731]
[1760638978595,6.60333633,108270.0,108260.0,0.00027731]
[1760638978799,0.5247575,108250.0,108240.0,5e-05]
[1760638979006,1.56641031,108250.0,108240.0,5e-05]
[1760638979420,6.51673399,108250.0,108240.0,5e-05]
[1760638979627,6.59996265,108250.0,108240.0,5e-05]
[1760638980259,7.37501544,108250.0,108240.0,5e-05]
[1760638980473,6.73488015,108240.0,108230.0,0.00020162]
[1760638980677,7.04777086,108240.0,108230.0,0.00020162]
[1760638981130,6.18303599,108240.0,108230.0,0.00020162]
[1760638981343,6.16599881,108240.0,108230.0,0.00020162]
[1760638981551,6.18305705,108240.0,108230.0,0.00020162]
[1760638981765,6.09960162,108240.0,108230.0,0.00020162]
[1760638982191,6.16599881,108240.0,108230.0,0.00020162]
[1760638982401,7.04777135,108240.0,108230.0,0.00020162]
[1760638982605,6.27271856,108240.0,108230.0,0.00020162]
[1760638982806,6.18303648,108240.0,108230.0,0.00020162]
[1760638983238,6.18302906,108240.0,108230.0,0.00020162]
[1760638983481,0.18484288,108200.0,108190.0,0.01839673]
[1760638983689,0.91482705,108200.0,108190.0,0.01839673]
[1760638983906,0.18487705,108180.0,108170.0,0.01839673]
[1760638984157,0.18490512,108170.0,108150.0,0.01839673]
[1760638984369,0.18490512,108170.0,108160.0,0.18491124]
[1760638984370,0.13977426,108170.0,108160.0,0.18491124]
[1760638984591,0.89505279,108170.0,108160.0,0.18491124]
[1760638984827,0.91482705,108170.0,108160.0,0.18541348]
[1760638985466,0.64078036,108170.0,108160.0,0.18541348]
[1760638986500,0.6210061,108170.0,108160.0,0.18541348]
[1760638986711,0.12,108170.0,108160.0,0.22337229]
[1760638986918,0.6210061,108170.0,108160.0,0.22337229]
[1760638987540,0.6210061,108170.0,108160.0,0.22342229]
[1760638987963,0.6210061,108170.0,108160.0,0.00055224]
[1760638987964,0.12,108170.0,108160.0,0.00055224]
[1760638988182,0.6210061,108170.0,108160.0,0.2039546]
[1760638988391,0.12,108170.0,108160.0,0.18546348]
[1760638988819,0.12,108170.0,108160.0,0.31133588]